[Event "Titled Tuesday Blitz December 13 Early 2022"]
[White "Lamaze, Simon"]
[Black "Sarana, Alexey"]
[WhiteFideId "36069264"]
[BlackFideId "24133795"]
[WhiteElo "2272"]
[BlackElo "2708"]
[Result "1/2-1/2"]
[Round "02"]
[TimeControl "180+1"]
[Date "2022.12.13"]
[WhiteClock "0:00:20"]
[BlackClock "0:00:06"]

1. e4 {[%clk 0:02:58]}  c5 {[%clk 0:03:00]} 2. Nf3 {[%clk 0:02:58]}  d6 {[%clk 0:03:00]} 3. d4 {[%clk 0:02:59]}  cxd4 {[%clk 0:03:01]} 4. Nxd4 {[%clk 0:03:00]}  Nf6 {[%clk 0:03:02]} 5. Nc3 {[%clk 0:03:00]}  a6 {[%clk 0:03:03]} 6. Bd2 {[%clk 0:03:00]}  e5 {[%clk 0:03:02]} 7. Nf5 {[%clk 0:03:00]}  Nxe4 {[%clk 0:02:57]} 8. Nxg7+ {[%clk 0:02:59]}  Bxg7 {[%clk 0:02:57]} 9. Nxe4 {[%clk 0:02:59]}  d5 {[%clk 0:02:52]} 10. Ng3 {[%clk 0:02:59]}  e4 {[%clk 0:02:45]} 11. Qh5 {[%clk 0:02:51]}  Nc6 {[%clk 0:02:38]} 12. c4 {[%clk 0:02:40]}  Bxb2 {[%clk 0:02:09]} 13. Rb1 {[%clk 0:02:36]}  Be5 {[%clk 0:02:09]} 14. Be2 {[%clk 0:02:28]}  dxc4 {[%clk 0:01:49]} 15. Bxc4 {[%clk 0:02:12]}  Qf6 {[%clk 0:01:40]} 16. O-O {[%clk 0:01:46]}  Qg6 {[%clk 0:01:37]} 17. Qe2 {[%clk 0:01:44]}  O-O {[%clk 0:00:54]} 18. Bd5 {[%clk 0:01:16]}  Bxg3 {[%clk 0:00:34]} 19. hxg3 {[%clk 0:01:15]}  Bg4 {[%clk 0:00:34]} 20. Qe3 {[%clk 0:01:06]}  Rad8 {[%clk 0:00:23]} 21. Bxe4 {[%clk 0:01:00]}  Bf5 {[%clk 0:00:18]} 22. Bxf5 {[%clk 0:00:57]}  Qxf5 {[%clk 0:00:19]} 23. Rxb7 {[%clk 0:00:57]}  Rd5 {[%clk 0:00:19]} 24. Rb6 {[%clk 0:00:45]}  Nd4 {[%clk 0:00:18]} 25. Bc3 {[%clk 0:00:34]}  Ne6 {[%clk 0:00:13]} 26. Rxa6 {[%clk 0:00:34]}  Rfd8 {[%clk 0:00:13]} 27. Qe2 {[%clk 0:00:32]}  Rd3 {[%clk 0:00:13]} 28. Ba1 {[%clk 0:00:31]}  Rd2 {[%clk 0:00:12]} 29. Qf3 {[%clk 0:00:30]}  Qg5 {[%clk 0:00:05]} 30. Bf6 {[%clk 0:00:29]}  Qg6 {[%clk 0:00:02]} 31. Bxd8 {[%clk 0:00:29]}  Rxd8 {[%clk 0:00:03]} 32. Ra8 {[%clk 0:00:28]}  Qg5 {[%clk 0:00:01]} 33. Rxd8+ {[%clk 0:00:28]}  Qxd8 {[%clk 0:00:02]} 34. a4 {[%clk 0:00:28]}  Qa5 {[%clk 0:00:02]} 35. Qg4+ {[%clk 0:00:28]}  Kf8 {[%clk 0:00:03]} 36. Qc4 {[%clk 0:00:28]}  Kg7 {[%clk 0:00:02]} 37. Qb5 {[%clk 0:00:28]}  Qd2 {[%clk 0:00:02]} 38. a5 {[%clk 0:00:28]}  Nd4 {[%clk 0:00:03]} 39. Qe5+ {[%clk 0:00:27]}  f6 {[%clk 0:00:03]} 40. Qe7+ {[%clk 0:00:22]}  Kg6 {[%clk 0:00:04]} 41. Qe4+ {[%clk 0:00:20]}  Kg7 {[%clk 0:00:04]} 42. Qe3 {[%clk 0:00:20]}  Qb4 {[%clk 0:00:01]} 43. a6 {[%clk 0:00:20]}  Qc4 {[%clk 0:00:01]} 44. a7 {[%clk 0:00:20]}  Ne2+ {[%clk 0:00:02]} 45. Kh2 {[%clk 0:00:20]}  Qb5 {[%clk 0:00:02]} 46. Qxe2 {[%clk 0:00:19]}  Qxe2 {[%clk 0:00:02]} 47. a8=Q {[%clk 0:00:20]}  Qxf1 {[%clk 0:00:02]} 48. Qb7+ {[%clk 0:00:20]}  Kg6 {[%clk 0:00:03]} 49. Qe4+ {[%clk 0:00:21]}  Kg7 {[%clk 0:00:04]} 50. Qe7+ {[%clk 0:00:21]}  Kg6 {[%clk 0:00:04]} 51. f4 {[%clk 0:00:21]}  Qb5 {[%clk 0:00:03]} 52. g4 {[%clk 0:00:21]}  Qc4 {[%clk 0:00:02]} 53. f5+ {[%clk 0:00:21]}  Kg5 {[%clk 0:00:02]} 54. Qg7+ {[%clk 0:00:20]}  Kf4 {[%clk 0:00:03]} 55. Qxf6 {[%clk 0:00:18]}  Kxg4 {[%clk 0:00:03]} 56. Qe6 {[%clk 0:00:18]}  Qf4+ {[%clk 0:00:03]} 57. Kg1 {[%clk 0:00:18]}  Qd4+ {[%clk 0:00:03]} 58. Kf1 {[%clk 0:00:18]}  Qd1+ {[%clk 0:00:02]} 59. Kf2 {[%clk 0:00:18]}  Qd4+ {[%clk 0:00:02]} 60. Kf1 {[%clk 0:00:18]}  Kg3 {[%clk 0:00:03]} 61. Qg8+ {[%clk 0:00:18]}  Kf4 {[%clk 0:00:02]} 62. Qb8+ {[%clk 0:00:17]}  Kg4 {[%clk 0:00:02]} 63. Qg8+ {[%clk 0:00:18]}  Kf4 {[%clk 0:00:03]} 64. Qxh7 {[%clk 0:00:15]}  Qd1+ {[%clk 0:00:02]} 65. Kf2 {[%clk 0:00:15]}  Qd4+ {[%clk 0:00:03]} 66. Ke2 {[%clk 0:00:15]}  Qe4+ {[%clk 0:00:03]} 67. Kf1 {[%clk 0:00:16]}  Qb1+ {[%clk 0:00:03]} 68. Kf2 {[%clk 0:00:16]}  Qb6+ {[%clk 0:00:03]} 69. Ke2 {[%clk 0:00:17]}  Qb2+ {[%clk 0:00:04]} 70. Kd3 {[%clk 0:00:17]}  Qb3+ {[%clk 0:00:04]} 71. Kd2 {[%clk 0:00:17]}  Qb2+ {[%clk 0:00:04]} 72. Kd3 {[%clk 0:00:17]}  Qb5+ {[%clk 0:00:04]} 73. Kd4 {[%clk 0:00:17]}  Qe5+ {[%clk 0:00:04]} 74. Kd3 {[%clk 0:00:18]}  Qe3+ {[%clk 0:00:04]} 75. Kc4 {[%clk 0:00:18]}  Qe4+ {[%clk 0:00:05]} 76. Kc5 {[%clk 0:00:18]}  Qe5+ {[%clk 0:00:04]} 77. Kc6 {[%clk 0:00:18]}  Qf6+ {[%clk 0:00:04]} 78. Kd7 {[%clk 0:00:19]}  Qxf5+ {[%clk 0:00:02]} 79. Qxf5+ {[%clk 0:00:18]}  Kxf5 {[%clk 0:00:03]} 80. Ke7 {[%clk 0:00:18]}  Kg4 {[%clk 0:00:04]} 81. Kf6 {[%clk 0:00:19]}  Kg3 {[%clk 0:00:05]} 82. Kg5 {[%clk 0:00:20]}  Kxg2 {[%clk 0:00:06]} 1/2-1/2


[Site "https://www.chess.com"]

[Event "Titled Tuesday Blitz December 13 Early 2022"]
[White "Lauridsen, Jesper Morch"]
[Black "Bilan, Danila"]
[WhiteFideId "1401890"]
[BlackFideId "24161918"]
[WhiteElo "2268"]
[BlackElo "2182"]
[Result "1/2-1/2"]
[Round "02"]
[TimeControl "180+1"]
[Date "2022.12.14"]
[WhiteClock "0:00:07"]
[BlackClock "0:00:12"]

1. e4 {[%clk 0:03:00]}  c6 {[%clk 0:02:59]} 2. c3 {[%clk 0:03:01]}  d5 {[%clk 0:03:00]} 3. exd5 {[%clk 0:03:00]}  cxd5 {[%clk 0:03:00]} 4. d4 {[%clk 0:03:01]}  Nf6 {[%clk 0:03:00]} 5. Bd3 {[%clk 0:03:01]}  Nc6 {[%clk 0:03:01]} 6. Ne2 {[%clk 0:03:00]}  Bg4 {[%clk 0:02:58]} 7. Bf4 {[%clk 0:02:58]}  e6 {[%clk 0:02:57]} 8. Nd2 {[%clk 0:02:54]}  Bd6 {[%clk 0:02:56]} 9. Bxd6 {[%clk 0:02:43]}  Qxd6 {[%clk 0:02:56]} 10. h3 {[%clk 0:02:41]}  Bh5 {[%clk 0:02:56]} 11. g4 {[%clk 0:02:27]}  Bg6 {[%clk 0:02:55]} 12. Bxg6 {[%clk 0:02:20]}  hxg6 {[%clk 0:02:55]} 13. Ng3 {[%clk 0:02:18]}  b5 {[%clk 0:02:42]} 14. a3 {[%clk 0:02:04]}  a5 {[%clk 0:02:37]} 15. Qe2 {[%clk 0:02:00]}  Rb8 {[%clk 0:02:34]} 16. Nb3 {[%clk 0:01:49]}  Nd7 {[%clk 0:02:15]} 17. Qe3 {[%clk 0:01:33]}  b4 {[%clk 0:02:05]} 18. axb4 {[%clk 0:01:29]}  axb4 {[%clk 0:02:06]} 19. Ra6 {[%clk 0:01:21]}  Rb6 {[%clk 0:01:22]} 20. Ra8+ {[%clk 0:01:12]}  Ncb8 {[%clk 0:01:21]} 21. Nc5 {[%clk 0:01:01]}  O-O {[%clk 0:01:21]} 22. O-O {[%clk 0:00:47]}  bxc3 {[%clk 0:01:06]} 23. bxc3 {[%clk 0:00:46]}  Nc6 {[%clk 0:01:04]} 24. Nxd7 {[%clk 0:00:39]}  Qxd7 {[%clk 0:00:57]} 25. Rxf8+ {[%clk 0:00:37]}  Kxf8 {[%clk 0:00:58]} 26. c4 {[%clk 0:00:34]}  Kg8 {[%clk 0:00:38]} 27. Ra1 {[%clk 0:00:21]}  Rb8 {[%clk 0:00:29]} 28. c5 {[%clk 0:00:14]}  Qb7 {[%clk 0:00:29]} 29. Qf4 {[%clk 0:00:13]}  Qb2 {[%clk 0:00:23]} 30. Rd1 {[%clk 0:00:10]}  Qc2 {[%clk 0:00:19]} 31. Rd2 {[%clk 0:00:09]}  Qc1+ {[%clk 0:00:19]} 32. Kg2 {[%clk 0:00:10]}  Qc4 {[%clk 0:00:18]} 33. Qc7 {[%clk 0:00:09]}  Qb5 {[%clk 0:00:17]} 34. h4 {[%clk 0:00:09]}  Qb7 {[%clk 0:00:13]} 35. Qf4 {[%clk 0:00:08]}  Qb4 {[%clk 0:00:13]} 36. Qc7 {[%clk 0:00:07]}  Qxd2 {[%clk 0:00:13]} 37. Qxc6 {[%clk 0:00:07]}  Rb2 {[%clk 0:00:12]} 38. Qe8+ {[%clk 0:00:05]}  Kh7 {[%clk 0:00:11]} 39. Qxf7 {[%clk 0:00:05]}  Qxd4 {[%clk 0:00:09]} 40. h5 {[%clk 0:00:05]}  Qxg4 {[%clk 0:00:09]} 41. hxg6+ {[%clk 0:00:05]}  Qxg6 {[%clk 0:00:09]} 42. Qf4 {[%clk 0:00:05]}  Rb3 {[%clk 0:00:08]} 43. Qh4+ {[%clk 0:00:05]}  Qh6 {[%clk 0:00:08]} 44. Nh5 {[%clk 0:00:05]}  Rb8 {[%clk 0:00:07]} 45. c6 {[%clk 0:00:06]}  Qg6+ {[%clk 0:00:06]} 46. Kh2 {[%clk 0:00:05]}  Kg8 {[%clk 0:00:06]} 47. c7 {[%clk 0:00:04]}  Rc8 {[%clk 0:00:05]} 48. Qd8+ {[%clk 0:00:05]}  Qe8 {[%clk 0:00:04]} 49. Qg5 {[%clk 0:00:05]}  Rxc7 {[%clk 0:00:04]} 50. Nf6+ {[%clk 0:00:04]}  Kf7 {[%clk 0:00:05]} 51. Nxe8 {[%clk 0:00:05]}  Kxe8 {[%clk 0:00:06]} 52. Qg6+ {[%clk 0:00:05]}  Rf7 {[%clk 0:00:06]} 53. Kg3 {[%clk 0:00:05]}  Kf8 {[%clk 0:00:07]} 54. f4 {[%clk 0:00:06]}  Rf6 {[%clk 0:00:07]} 55. Qg5 {[%clk 0:00:06]}  Kf7 {[%clk 0:00:08]} 56. Kf3 {[%clk 0:00:07]}  Rf5 {[%clk 0:00:08]} 57. Qg4 {[%clk 0:00:07]}  Kf6 {[%clk 0:00:08]} 58. Ke3 {[%clk 0:00:07]}  g5 {[%clk 0:00:08]} 59. fxg5+ {[%clk 0:00:06]}  Rxg5 {[%clk 0:00:09]} 60. Qf4+ {[%clk 0:00:06]}  Rf5 {[%clk 0:00:10]} 61. Qb8 {[%clk 0:00:07]}  Re5+ {[%clk 0:00:10]} 62. Kd4 {[%clk 0:00:06]}  Rf5 {[%clk 0:00:11]} 63. Kd3 {[%clk 0:00:07]}  Kf7 {[%clk 0:00:11]} 64. Qc7+ {[%clk 0:00:07]}  Kf6 {[%clk 0:00:11]} 65. Qd8+ {[%clk 0:00:07]}  Ke5 {[%clk 0:00:11]} 66. Qc7+ {[%clk 0:00:06]}  Kf6 {[%clk 0:00:11]} 67. Qd8+ {[%clk 0:00:06]}  Ke5 {[%clk 0:00:11]} 68. Qh8+ {[%clk 0:00:07]}  Kd6 {[%clk 0:00:11]} 69. Qd8+ {[%clk 0:00:07]}  Ke5 {[%clk 0:00:12]} 1/2-1/2


[Site "https://www.chess.com"]

[Event "Titled Tuesday Blitz December 13 Early 2022"]
[White "Lawson, Eric"]
[Black "Li, Hui"]
[WhiteFideId "2604116"]
[BlackFideId "15400310"]
[WhiteElo "2523"]
[BlackElo "1954"]
[Result "1-0"]
[Round "02"]
[TimeControl "180+1"]
[Date "2022.12.14"]
[WhiteClock "0:01:08"]
[BlackClock "0:00:25"]

1. d4 {[%clk 0:02:59]}  Nf6 {[%clk 0:03:00]} 2. Bg5 {[%clk 0:02:59]}  Ne4 {[%clk 0:02:59]} 3. Bf4 {[%clk 0:02:59]}  d5 {[%clk 0:02:58]} 4. e3 {[%clk 0:02:59]}  e6 {[%clk 0:02:51]} 5. Bd3 {[%clk 0:02:59]}  Bd6 {[%clk 0:02:50]} 6. Bxe4 {[%clk 0:02:59]}  Bxf4 {[%clk 0:02:43]} 7. Bd3 {[%clk 0:02:58]}  Bd6 {[%clk 0:02:43]} 8. f4 {[%clk 0:02:58]}  c5 {[%clk 0:02:38]} 9. c3 {[%clk 0:02:59]}  cxd4 {[%clk 0:02:17]} 10. cxd4 {[%clk 0:02:58]}  Nc6 {[%clk 0:02:14]} 11. a3 {[%clk 0:02:57]}  O-O {[%clk 0:02:11]} 12. Nc3 {[%clk 0:02:52]}  a6 {[%clk 0:02:06]} 13. Qh5 {[%clk 0:02:46]}  g6 {[%clk 0:02:04]} 14. Qe2 {[%clk 0:02:39]}  b5 {[%clk 0:01:50]} 15. Nf3 {[%clk 0:02:37]}  Bd7 {[%clk 0:01:46]} 16. h4 {[%clk 0:02:36]}  Ne7 {[%clk 0:01:42]} 17. h5 {[%clk 0:02:29]}  Nf5 {[%clk 0:01:41]} 18. Rh3 {[%clk 0:02:23]}  b4 {[%clk 0:01:18]} 19. axb4 {[%clk 0:02:21]}  Bxb4 {[%clk 0:01:19]} 20. g4 {[%clk 0:02:19]}  Nd6 {[%clk 0:01:19]} 21. Qh2 {[%clk 0:02:08]}  Qe7 {[%clk 0:01:11]} 22. Ng5 {[%clk 0:01:52]}  e5 {[%clk 0:00:45]} 23. dxe5 {[%clk 0:01:31]}  Ne4 {[%clk 0:00:37]} 24. Bxe4 {[%clk 0:01:14]}  dxe4 {[%clk 0:00:38]} 25. hxg6 {[%clk 0:01:12]}  fxg6 {[%clk 0:00:25]} 26. Rxh7 {[%clk 0:01:08]} 1-0


[Site "https://www.chess.com"]

[Event "Titled Tuesday Blitz December 13 Early 2022"]
[White "Manelyuk, Daniil"]
[Black "Pichot, Alan"]
[WhiteFideId "44173920"]
[BlackFideId "110973"]
[WhiteElo "2210"]
[BlackElo "2561"]
[Result "0-1"]
[Round "02"]
[TimeControl "180+1"]
[Date "2022.12.13"]
[WhiteClock "0:00:13"]
[BlackClock "0:00:14"]

1. e4 {[%clk 0:03:00]}  c5 {[%clk 0:02:59]} 2. Nf3 {[%clk 0:02:58]}  e6 {[%clk 0:02:59]} 3. c4 {[%clk 0:02:57]}  Nc6 {[%clk 0:02:57]} 4. Nc3 {[%clk 0:02:57]}  Nf6 {[%clk 0:02:55]} 5. Be2 {[%clk 0:02:55]}  d5 {[%clk 0:02:47]} 6. exd5 {[%clk 0:02:56]}  exd5 {[%clk 0:02:47]} 7. d4 {[%clk 0:02:57]}  cxd4 {[%clk 0:02:43]} 8. Nxd4 {[%clk 0:02:15]}  Be7 {[%clk 0:02:42]} 9. Bg5 {[%clk 0:02:13]}  O-O {[%clk 0:02:38]} 10. O-O {[%clk 0:02:05]}  h6 {[%clk 0:02:36]} 11. Bxf6 {[%clk 0:01:53]}  Bxf6 {[%clk 0:02:36]} 12. Nxc6 {[%clk 0:01:53]}  bxc6 {[%clk 0:02:37]} 13. cxd5 {[%clk 0:01:53]}  Qb6 {[%clk 0:02:10]} 14. Na4 {[%clk 0:01:36]}  Qa5 {[%clk 0:02:02]} 15. dxc6 {[%clk 0:01:30]}  Rd8 {[%clk 0:02:02]} 16. Qb3 {[%clk 0:01:23]}  Be6 {[%clk 0:02:00]} 17. Qb5 {[%clk 0:01:09]}  Qc7 {[%clk 0:01:29]} 18. Qa6 {[%clk 0:00:57]}  Rd5 {[%clk 0:01:27]} 19. Rac1 {[%clk 0:00:30]}  Rb8 {[%clk 0:01:26]} 20. Nc5 {[%clk 0:00:22]}  Bc8 {[%clk 0:01:19]} 21. Qa4 {[%clk 0:00:20]}  Rxb2 {[%clk 0:01:13]} 22. Bf3 {[%clk 0:00:16]}  Rd4 {[%clk 0:01:12]} 23. Qa3 {[%clk 0:00:10]}  Rb5 {[%clk 0:01:05]} 24. Na6 {[%clk 0:00:09]}  Qb6 {[%clk 0:01:01]} 25. c7 {[%clk 0:00:09]}  Ra5 {[%clk 0:00:52]} 26. Qe3 {[%clk 0:00:09]}  Qxa6 {[%clk 0:00:52]} 27. Qe8+ {[%clk 0:00:07]}  Kh7 {[%clk 0:00:52]} 28. Be4+ {[%clk 0:00:07]}  Rxe4 {[%clk 0:00:26]} 29. Qxe4+ {[%clk 0:00:06]}  g6 {[%clk 0:00:27]} 30. Qe8 {[%clk 0:00:05]}  Kg7 {[%clk 0:00:05]} 31. Rc6 {[%clk 0:00:05]}  Qb5 {[%clk 0:00:06]} 32. Qxc8 {[%clk 0:00:03]}  Qxc6 {[%clk 0:00:06]} 33. Qb8 {[%clk 0:00:01]}  Rc5 {[%clk 0:00:06]} 34. Qxa7 {[%clk 0:00:01]}  Qxc7 {[%clk 0:00:06]} 35. Qa3 {[%clk 0:00:01]}  Ra5 {[%clk 0:00:06]} 36. Qf3 {[%clk 0:00:02]}  Rxa2 {[%clk 0:00:05]} 37. h3 {[%clk 0:00:03]}  Ra1 {[%clk 0:00:05]} 38. Rxa1 {[%clk 0:00:02]}  Bxa1 {[%clk 0:00:06]} 39. Qe4 {[%clk 0:00:03]}  Be5 {[%clk 0:00:06]} 40. g3 {[%clk 0:00:03]}  Qc1+ {[%clk 0:00:06]} 41. Kg2 {[%clk 0:00:04]}  Qc5 {[%clk 0:00:07]} 42. Qe2 {[%clk 0:00:04]}  Qd5+ {[%clk 0:00:06]} 43. f3 {[%clk 0:00:04]}  g5 {[%clk 0:00:06]} 44. h4 {[%clk 0:00:04]}  gxh4 {[%clk 0:00:06]} 45. gxh4 {[%clk 0:00:05]}  Bf4 {[%clk 0:00:06]} 46. Qb2+ {[%clk 0:00:05]}  Qe5 {[%clk 0:00:07]} 47. Qc2 {[%clk 0:00:05]}  Qf6 {[%clk 0:00:07]} 48. Kh3 {[%clk 0:00:04]}  Qe6+ {[%clk 0:00:07]} 49. Kg2 {[%clk 0:00:04]}  Qg6+ {[%clk 0:00:07]} 50. Qxg6+ {[%clk 0:00:02]}  Kxg6 {[%clk 0:00:08]} 51. Kh3 {[%clk 0:00:02]}  Kh5 {[%clk 0:00:08]} 52. Kg2 {[%clk 0:00:02]}  Kxh4 {[%clk 0:00:09]} 53. Kf2 {[%clk 0:00:02]}  Kh3 {[%clk 0:00:10]} 54. Kg1 {[%clk 0:00:03]}  Kg3 {[%clk 0:00:10]} 55. Kh1 {[%clk 0:00:04]}  Kxf3 {[%clk 0:00:11]} 56. Kg1 {[%clk 0:00:05]}  Kg3 {[%clk 0:00:11]} 57. Kh1 {[%clk 0:00:06]}  h5 {[%clk 0:00:12]} 58. Kg1 {[%clk 0:00:06]}  h4 {[%clk 0:00:12]} 59. Kh1 {[%clk 0:00:07]}  Be5 {[%clk 0:00:13]} 60. Kg1 {[%clk 0:00:08]}  f5 {[%clk 0:00:14]} 61. Kh1 {[%clk 0:00:09]}  h3 {[%clk 0:00:14]} 62. Kg1 {[%clk 0:00:10]}  f4 {[%clk 0:00:15]} 63. Kh1 {[%clk 0:00:11]}  f3 {[%clk 0:00:15]} 64. Kg1 {[%clk 0:00:12]}  f2+ {[%clk 0:00:14]} 65. Kh1 {[%clk 0:00:13]}  f1=Q# {[%clk 0:00:14]} 0-1


[Site "https://www.chess.com"]

[Event "Titled Tuesday Blitz December 13 Early 2022"]
[White "Manukyan, Sargis A."]
[Black "Donchenko, Alexander"]
[WhiteFideId "13303970"]
[BlackFideId "24603295"]
[WhiteElo "2187"]
[BlackElo "2581"]
[Result "0-1"]
[Round "02"]
[TimeControl "180+1"]
[Date "2022.12.14"]
[WhiteClock "0:00:04"]
[BlackClock "0:01:24"]

1. Nf3 {[%clk 0:03:00]}  Nf6 {[%clk 0:02:51]} 2. d4 {[%clk 0:02:53]}  d5 {[%clk 0:02:51]} 3. c4 {[%clk 0:02:53]}  e6 {[%clk 0:02:52]} 4. g3 {[%clk 0:02:52]}  Bb4+ {[%clk 0:02:51]} 5. Bd2 {[%clk 0:02:52]}  Bd6 {[%clk 0:02:51]} 6. Bg2 {[%clk 0:02:52]}  O-O {[%clk 0:02:52]} 7. O-O {[%clk 0:02:52]}  Nbd7 {[%clk 0:02:52]} 8. Qc2 {[%clk 0:02:48]}  c6 {[%clk 0:02:52]} 9. Bg5 {[%clk 0:02:28]}  h6 {[%clk 0:02:40]} 10. Bxf6 {[%clk 0:02:27]}  Nxf6 {[%clk 0:02:41]} 11. Nbd2 {[%clk 0:02:27]}  b6 {[%clk 0:02:37]} 12. e4 {[%clk 0:02:21]}  Be7 {[%clk 0:02:37]} 13. Rad1 {[%clk 0:01:57]}  Bb7 {[%clk 0:02:37]} 14. Rfe1 {[%clk 0:01:42]}  Rc8 {[%clk 0:02:34]} 15. e5 {[%clk 0:01:39]}  Nd7 {[%clk 0:02:34]} 16. Qa4 {[%clk 0:01:27]}  Qc7 {[%clk 0:02:33]} 17. cxd5 {[%clk 0:01:20]}  cxd5 {[%clk 0:02:32]} 18. Nb3 {[%clk 0:01:07]}  Qc6 {[%clk 0:02:19]} 19. Qxc6 {[%clk 0:01:04]}  Bxc6 {[%clk 0:02:20]} 20. Bf1 {[%clk 0:01:00]}  Nb8 {[%clk 0:02:20]} 21. Rc1 {[%clk 0:01:00]}  Rfd8 {[%clk 0:02:17]} 22. Rc2 {[%clk 0:00:57]}  Kf8 {[%clk 0:02:17]} 23. Rec1 {[%clk 0:00:58]}  a5 {[%clk 0:02:14]} 24. a3 {[%clk 0:00:52]}  Bd7 {[%clk 0:02:10]} 25. Rxc8 {[%clk 0:00:40]}  Rxc8 {[%clk 0:02:11]} 26. Rxc8+ {[%clk 0:00:39]}  Bxc8 {[%clk 0:02:10]} 27. Bb5 {[%clk 0:00:40]}  f6 {[%clk 0:02:06]} 28. h4 {[%clk 0:00:37]}  Bb7 {[%clk 0:02:05]} 29. Kf1 {[%clk 0:00:36]}  Nc6 {[%clk 0:02:04]} 30. Ke2 {[%clk 0:00:34]}  Na7 {[%clk 0:02:04]} 31. Bd3 {[%clk 0:00:33]}  Bc6 {[%clk 0:02:04]} 32. Kd2 {[%clk 0:00:26]}  Ba4 {[%clk 0:02:04]} 33. Nc1 {[%clk 0:00:25]}  Kf7 {[%clk 0:02:02]} 34. h5 {[%clk 0:00:19]}  Bd8 {[%clk 0:02:01]} 35. Kc3 {[%clk 0:00:16]}  Bc7 {[%clk 0:01:58]} 36. Ne2 {[%clk 0:00:15]}  Ke7 {[%clk 0:01:55]} 37. Nf4 {[%clk 0:00:14]}  Bd1 {[%clk 0:01:41]} 38. Be2 {[%clk 0:00:09]}  Ba4 {[%clk 0:01:41]} 39. b3 {[%clk 0:00:07]}  Be8 {[%clk 0:01:40]} 40. a4 {[%clk 0:00:07]}  Nc6 {[%clk 0:01:37]} 41. Bb5 {[%clk 0:00:01]}  fxe5 {[%clk 0:01:35]} 42. dxe5 {[%clk 0:00:02]}  Nxe5 {[%clk 0:01:32]} 43. Ng6+ {[%clk 0:00:03]}  Bxg6 {[%clk 0:01:31]} 44. hxg6 {[%clk 0:00:04]}  Nxf3 {[%clk 0:01:30]} 45. Be2 {[%clk 0:00:03]}  Ne5 {[%clk 0:01:30]} 46. f4 {[%clk 0:00:01]}  Nxg6 {[%clk 0:01:30]} 47. Bd3 {[%clk 0:00:02]}  Nf8 {[%clk 0:01:30]} 48. Kd4 {[%clk 0:00:02]}  Bd6 {[%clk 0:01:29]} 49. g4 {[%clk 0:00:03]}  Nd7 {[%clk 0:01:27]} 50. g5 {[%clk 0:00:04]}  Bxf4 {[%clk 0:01:26]} 51. g6 {[%clk 0:00:04]}  Kd6 {[%clk 0:01:24]} 0-1


[Site "https://www.chess.com"]

[Event "Titled Tuesday Blitz December 13 Early 2022"]
[White "Martinez Ramirez, Lennis"]
[Black "Ansh M Shah"]
[WhiteFideId "3509079"]
[BlackFideId "25033379"]
[WhiteElo "2439"]
[BlackElo "2084"]
[Result "1-0"]
[Round "02"]
[TimeControl "180+1"]
[Date "2022.12.14"]
[WhiteClock "0:02:28"]
[BlackClock "0:02:38"]

1. c4 {[%clk 0:03:00]}  Nf6 {[%clk 0:02:59]} 2. Nc3 {[%clk 0:02:59]}  c5 {[%clk 0:03:00]} 3. g3 {[%clk 0:02:59]}  Nc6 {[%clk 0:03:00]} 4. Bg2 {[%clk 0:03:00]}  g6 {[%clk 0:03:00]} 5. Nf3 {[%clk 0:02:58]}  Bg7 {[%clk 0:03:01]} 6. d4 {[%clk 0:02:58]}  cxd4 {[%clk 0:03:00]} 7. Nxd4 {[%clk 0:02:59]}  O-O {[%clk 0:03:00]} 8. e3 {[%clk 0:02:59]}  e5 {[%clk 0:02:58]} 9. Ndb5 {[%clk 0:02:57]}  a6 {[%clk 0:02:55]} 10. Nd6 {[%clk 0:02:55]}  Qe7 {[%clk 0:02:54]} 11. c5 {[%clk 0:02:49]}  Ne8 {[%clk 0:02:53]} 12. Nd5 {[%clk 0:02:49]}  Qe6 {[%clk 0:02:52]} 13. Nxe8 {[%clk 0:02:35]}  Qxe8 {[%clk 0:02:39]} 14. Nc7 {[%clk 0:02:34]}  Qd8 {[%clk 0:02:39]} 15. Nxa8 {[%clk 0:02:33]}  Qa5+ {[%clk 0:02:37]} 16. b4 {[%clk 0:02:29]}  Qxc5 {[%clk 0:02:38]} 17. bxc5 {[%clk 0:02:28]} 1-0


[Site "https://www.chess.com"]

[Event "Titled Tuesday Blitz December 13 Early 2022"]
[White "Matveeva, Olga"]
[Black "Pajeken, Jakob Leon"]
[WhiteFideId "24107018"]
[BlackFideId "12942839"]
[WhiteElo "2056"]
[BlackElo "2414"]
[Result "1-0"]
[Round "02"]
[TimeControl "180+1"]
[Date "2022.12.14"]
[WhiteClock "0:00:12"]
[BlackClock "0:00:49"]

1. d4 {[%clk 0:03:00]}  d5 {[%clk 0:02:59]} 2. c4 {[%clk 0:03:00]}  dxc4 {[%clk 0:03:00]} 3. Nf3 {[%clk 0:03:00]}  Nf6 {[%clk 0:03:00]} 4. e3 {[%clk 0:03:00]}  e6 {[%clk 0:03:00]} 5. Bxc4 {[%clk 0:03:00]}  c5 {[%clk 0:03:01]} 6. O-O {[%clk 0:02:58]}  Nc6 {[%clk 0:03:01]} 7. Qe2 {[%clk 0:02:52]}  a6 {[%clk 0:03:01]} 8. a4 {[%clk 0:02:47]}  Be7 {[%clk 0:03:01]} 9. Rd1 {[%clk 0:02:46]}  Qc7 {[%clk 0:03:01]} 10. dxc5 {[%clk 0:02:43]}  O-O {[%clk 0:03:00]} 11. b3 {[%clk 0:02:41]}  Bxc5 {[%clk 0:03:00]} 12. Bb2 {[%clk 0:02:41]}  b6 {[%clk 0:02:59]} 13. Nbd2 {[%clk 0:02:36]}  Bb7 {[%clk 0:02:57]} 14. Rac1 {[%clk 0:02:27]}  Rfd8 {[%clk 0:02:50]} 15. Ng5 {[%clk 0:02:22]}  Na5 {[%clk 0:02:40]} 16. Nxe6 {[%clk 0:01:54]}  Qc6 {[%clk 0:02:28]} 17. e4 {[%clk 0:01:33]}  fxe6 {[%clk 0:02:18]} 18. Bxf6 {[%clk 0:01:22]}  gxf6 {[%clk 0:02:19]} 19. Qg4+ {[%clk 0:01:21]}  Kh8 {[%clk 0:02:12]} 20. Bxe6 {[%clk 0:01:20]}  Rxd2 {[%clk 0:01:42]} 21. Rxd2 {[%clk 0:01:12]}  Qxe4 {[%clk 0:01:42]} 22. Qxe4 {[%clk 0:00:59]}  Bxe4 {[%clk 0:01:41]} 23. b4 {[%clk 0:00:41]}  Re8 {[%clk 0:01:21]} 24. bxc5 {[%clk 0:00:29]}  Rxe6 {[%clk 0:01:20]} 25. cxb6 {[%clk 0:00:29]}  Rxb6 {[%clk 0:01:19]} 26. Rd7 {[%clk 0:00:28]}  Nc6 {[%clk 0:01:13]} 27. f3 {[%clk 0:00:27]}  Bf5 {[%clk 0:01:12]} 28. Rd6 {[%clk 0:00:25]}  Nd4 {[%clk 0:01:05]} 29. Rxb6 {[%clk 0:00:24]}  Ne2+ {[%clk 0:01:06]} 30. Kf2 {[%clk 0:00:24]}  Nxc1 {[%clk 0:01:06]} 31. Rxa6 {[%clk 0:00:22]}  Nb3 {[%clk 0:01:05]} 32. Rxf6 {[%clk 0:00:21]}  Bd3 {[%clk 0:01:03]} 33. Rf7 {[%clk 0:00:20]}  Bc2 {[%clk 0:01:00]} 34. Ke3 {[%clk 0:00:19]}  Na5 {[%clk 0:01:00]} 35. Rc7 {[%clk 0:00:17]}  Bxa4 {[%clk 0:00:58]} 36. Ra7 {[%clk 0:00:16]}  Nc4+ {[%clk 0:00:58]} 37. Kd4 {[%clk 0:00:16]}  Nb6 {[%clk 0:00:50]} 38. Kc5 {[%clk 0:00:14]}  Nd7+ {[%clk 0:00:49]} 39. Kd6 {[%clk 0:00:13]}  Bb5 {[%clk 0:00:49]} 40. Rxd7 {[%clk 0:00:12]} 1-0


[Site "https://www.chess.com"]